Cogmind - Beta 10.2 @@@ ROGUE MODE // 2022.02.03 @ 07:53:23 Player: lumberblack Result: Destroyed by EX-DEC with AWS/EX-DEC Performance ------------- Evolutions (1) 500 Regions Visited (5) 1000 Robots Destroyed (95) 475 Value Destroyed (1663) 1663 Prototype IDs (34) 680 Alien Tech Used (0) 0 Bonus (-21) -21 TOTAL SCORE: 4297 Bonus ------- High Alert Combat Kills 124 Follower Combat Kills 169 Aligned with FarCom 300 Friendly Fire -614 Cogmind --------- Core Integrity 0/400 Matter 0/300 Energy 350/350 System Corruption 4% Temperature Cool (0) Movement Treading (200) Ox2 Location -9/Exiles Parts ------- > --- POWER (1) -------- Light Neutrino Core > --- PROPULSION (2) --- Light Treads Light Treads > --- UTILITY (4) ------ Humpback Medium Battery Makeshift Armor Plating > --- WEAPON (2) ------- Shock Bomb Launcher Shock Bomb Launcher > --- INVENTORY (24) --- Light Treads Light Treads Medium Battery (200) High-capacity Matter Pod (0) Medium Armor Plating Long-range Tractor Beam High-powered Shotgun High-powered Shotgun High-powered Shotgun High-powered Shotgun High-powered Shotgun High-powered Shotgun High-powered Shotgun Mini Grenade Launcher Katana Peak State ------------ > --- POWER ------------ Heavy Ion Engine > --- PROPULSION ------- Light Treads Light Treads > --- UTILITY ---------- High-capacity Storage Unit High-capacity Storage Unit Hacking Suite Hacking Suite > --- WEAPON ----------- Beamcaster Beamcaster > --- INVENTORY -------- Makeshift Power Source Medium Storage Unit High-capacity Storage Unit High-capacity Matter Pod Experimental Sensor Array Medium Armor Plating Hacking Suite Hacking Suite Long-range Tractor Beam Bomb Drone Bay Improved Medium Laser Improved Medium Laser Improved Medium Laser Improved Medium Laser High-powered Shotgun High-powered Shotgun High-powered Shotgun High-powered Shotgun Katana [Rating: 29] Favorites ----------- Power Ion Engine Engine Ion Engine Power Core Light Neutrino Core Propulsion Light Treads Treads Light Treads Leg Aluminum Leg Wheel Wheel Utility High-capacity Storage Unit Device Improved Heat Sink Storage High-capacity Storage Unit Hackware Hacking Suite Protection Medium Armor Plating Weapon High-powered Shotgun Energy Gun Beamcaster Ballistic Gun High-powered Shotgun Ballistic Cannon Improved Light Cannon Launcher Shock Bomb Launcher Slashing Weapon Katana Build | -11 -10 -10 -9 -9 -9 ------- Run | Scr Mat Min Mat Min Exi Slots Evolved 2 | . . . 2 . . Power . | . . . . . . Propulsion . | . . . . . . Utility 2 | . . . 2 . . Weapon . | . . . . . . Parts Attached 123 | 5 18 9 50 6 35 Power 9 | . 1 1 3 . 4 Engine 8 | . 1 1 3 . 3 Core 1 | . . . . . 1 Reactor . | . . . . . . Propulsion 18 | 4 5 1 3 . 5 Treads 15 | 2 4 1 3 . 5 Leg . | . . . . . . Wheel 3 | 2 1 . . . . Hover . | . . . . . . Flight . | . . . . . . Utility 37 | 1 7 2 18 . 9 Device 8 | 1 1 1 3 . 2 Storage 11 | . 4 . 3 . 4 Processor . | . . . . . . Hackware 4 | . . . 4 . . Protection 14 | . 2 1 8 . 3 Artifact . | . . . . . . Weapon 59 | . 5 5 26 6 17 Energy Gun 11 | . 1 5 5 . . Energy Cannon . | . . . . . . Ballistic Gun 20 | . . . 13 4 3 Ballistic Cannon 5 | . 4 . 1 . . Launcher 20 | . . . 4 2 14 Special Weapon . | . . . . . . Impact Weapon . | . . . . . . Slashing Weapon 3 | . . . 3 . . Piercing Weapon . | . . . . . . Special Melee Weapon . | . . . . . . Unidentified Prototypes 2 | . . 1 . . 1 Parts Lost 15 | . . . 2 . 13 Power 2 | . . . . . 2 Propulsion 5 | . . . . . 5 Utility 3 | . . . 1 . 2 Weapon 5 | . . . 1 . 4 Highest Loss Streak 8 | . . . 1 . 8 Average Slot Usage (%) 97 | . 99 100 99 100 90 Engine 11 | . 14 14 11 11 8 Treads 23 | . 25 28 21 22 21 Device 2 | . 2 . 5 . . Storage 22 | . 14 14 26 33 25 Protection 11 | . 11 14 10 11 9 Energy Gun 7 | . 2 18 13 . . Ballistic Gun 7 | . 2 . 8 13 11 Ballistic Cannon 5 | . 22 9 . . . Launcher 3 | . . . . 8 10 Naked Turns . | . . . . . . Heaviest Build 180 | 13 52 54 123 123 180 Greatest Support 40 | 40 40 40 40 40 40 Greatest Overweight (x) 8 | 1 5 1 3 3 8 Average Overweight (x) 1 | . 1 1 2 2 2 Largest Inventory Capacity 44 | 6 12 12 28 28 44 Average Capacity 20 | 6 10 12 23 28 27 Most Carried 28 | 6 12 12 28 28 28 Average Carried 18 | 5 10 11 22 28 20 Final Capacity 28 | 6 12 12 28 28 24 Final Carried 28 | 4 12 12 28 28 15 Class Distribution -------------------- 61% | Hauler-Mutant 35% | Mutant Dominant Class ---------------- Mutant | -10/Materials Mutant | -10/Mines Hauler-Mutant | -9/Materials Hauler-Mutant | -9/Mines Hauler-Mutant | -9/Exiles Resources | -11 -10 -10 -9 -9 -9 ----------- Run | Scr Mat Min Mat Min Exi Matter Collected 3007 | 295 379 139 1040 121 1033 Remotely 636 | . . . 394 . 242 Salvage Created 2952 | 179 404 143 1582 160 484 Parts 213 | 12 27 7 107 10 50 Haulers Intercepted 8 | . 2 . 6 . . Recyclers Shooed 6 | . 2 . 4 . . Parts Field Recycled . | . . . . . . Retrieved Matter . | . . . . . . Parts Self-Destructed . | . . . . . . Prevented . | . . . . . . Kills | -11 -10 -10 -9 -9 -9 ------- Run | Scr Mat Min Mat Min Exi Combat Hostiles Destroyed 52 | . 8 1 31 4 8 Guns 39 | . 3 1 30 4 1 Cannons 6 | . 5 . 1 . . AOE 7 | . . . . . 7 Classes Destroyed 14 | 2 7 . 3 . 2 Worker 6 | . 1 . 4 1 . Builder 1 | . 1 . . . . Tunneler 6 | 5 . . 1 . . Hauler 8 | . 2 . 6 . . Recycler 5 | 1 1 . 3 . . Operator 5 | . 2 . 3 . . Turret 1 | . . . . . 1 Watcher 6 | . 2 . 4 . . Swarmer 15 | . 3 1 11 . . Grunt 22 | . 5 1 12 4 . Duelist 1 | . . . 1 . . Sentry 7 | . . . 7 . . Zionite 8 | . . . 1 . 7 Assembled 7 | . . . . . 7 Thug 2 | . . 2 . . . Best Kill Streak 7 | 3 5 1 7 2 6 Combat Bots Only 6 | . 4 1 5 2 6 Max Kills in Single Turn 3 | 1 1 1 2 1 3 Gunslinging 1 | . . . 1 . . Exploded 3 | . . . . . 3 Melee . | . . . . . . Uniques/NPCs Destroyed 3 | . . . . . 3 8R-AWN (-9/Exiles) EX-HEX (-9/Exiles) EX-BIN (-9/Exiles) Combat | -11 -10 -10 -9 -9 -9 -------- Run | Scr Mat Min Mat Min Exi Damage Taken 4116 | . 467 125 1031 73 2420 Core 474 | . 49 14 111 17 283 Absorbed by Shields . | . . . . . . Core Remaining (%) 87 | 100 . 74 . . . Volleys Fired 276 | 15 58 10 98 8 87 Largest 2 | 2 2 2 2 2 2 Hottest 150 | 60 78 150 150 50 72 Shots Fired 535 | 30 106 20 196 15 168 Gun 326 | 30 24 20 194 14 44 Cannon 84 | . 82 . 2 . . Launcher 125 | . . . . 1 124 Special . | . . . . . . Kinetic 287 | 15 94 . 120 14 44 Thermal 123 | 15 12 20 76 . . Explosive 9 | . . . . . 9 Electromagnetic 116 | . . . . 1 115 Robot Hit Streak 11 | 7 9 5 11 6 11 Robot Miss Streak 6 | 2 2 4 6 3 3 Penetration Max . | . . . . . . Secondary Targets 3 | . . . 3 . . Max Gunslinging Chain 1 | . . . 1 . . Shots Hit Robots 269 | 17 45 13 128 11 55 Core Hits 208 | 7 21 22 66 8 84 Critical Hits 1 | . . . 1 . . Critical Kills . | . . . . . . Critical Parts Destroyed 1 | . . . 1 . . Melee Attacks 7 | . . . 7 . . Impact . | . . . . . . Slashing 7 | . . . 7 . . Piercing . | . . . . . . Sneak Attacks . | . . . . . . Combat Hostiles . | . . . . . . Follow-up Attacks . | . . . . . . Damage Inflicted 6768 | 240 898 365 2530 223 2512 Guns 4440 | 240 250 297 2417 197 1039 Cannons 564 | . 526 . 38 . . Explosions 1422 | . . . . 10 1412 Melee . | . . . . . . Ramming 342 | . 122 68 75 16 61 Kinetic 3609 | 140 660 . 1573 197 1039 Thermal 1617 | 100 116 297 882 . 222 Explosive 460 | . . . . . 460 Electromagnetic 740 | . . . . 10 730 Impact . | . . . . . . Slashing . | . . . . . . Piercing . | . . . . . . Highest Corruption 4 | . . . . . 4 Average Corruption 1 | . . . . . 1 Corruption Purged . | . . . . . . Effects 16 | . . . . . 16 Message Errors 5 | . . . . . 5 Matter Fused 1 | . . . . . 1 Heat Flow Errors 1 | . . . . . 1 Energy Discharges 1 | . . . . . 1 Data Loss (minor) 3 | . . . . . 3 Targeting Errors 5 | . . . . . 5 Overload Shots . | . . . . . . Overflow Damage 14 | . . . 4 . 10 Projectiles . | . . . . . . Explosions 10 | . . . . . 10 Melee 4 | . . . 4 . . Knockbacks 7 | . 5 1 1 . . Impact 2 | . . 1 1 . . Kinetic 5 | . 5 . . . . Secondary . | . . . . . . Self-Inflicted Damage 211 | . . . . 4 207 Shots 15 | . . . . 1 14 Rammed 47 | . 17 9 8 1 12 Targets Rammed 53 | . 19 9 9 1 15 Kicked . | . . . . . . Crushed 6 | . 2 . 1 . 3 Highest Temperature 492 | 20 489 261 492 6 141 Average Temperature 80 | 18 98 109 96 4 42 Received Heat Transfer 651 | . 231 51 273 36 60 Effects 9 | . 7 . 2 . . Shutdowns 1 | . 1 . . . . Energy Bleed 3 | . 2 . 1 . . Matter Decay 1 | . 1 . . . . Short Circuit 1 | . 1 . . . . Damage (minor) 3 | . 2 . 1 . . Siege Activations . | . . . . . . Robots Corrupted . | . . . . . . Combat Hostiles . | . . . . . . Parts Fried 10 | . . . . . 10 Impact Corruptions 1 | . . . 1 . . Robots Melted . | . . . . . . Combat Hostiles . | . . . . . . Parts Melted 2 | . . . 2 . . Heat Transferred 2790 | 225 333 441 1591 . 200 Parts Sabotaged . | . . . . . . Parts Stolen . | . . . . . . Parts Stripped . | . . . . . . Power Chain Reactions 7 | . . . . . 7 Missiles Intercepted . | . . . . . . Alert | -11 -10 -10 -9 -9 -9 ------- Run | Scr Mat Min Mat Min Exi Peak Influence 829 | 30 195 230 829 261 . Initial 261 | . 19 18 . 261 . Average 207 | 17 64 63 374 155 . Maximum Alert Level 3 | . . 1 3 1 . Low Security (%) 67 | 100 100 82 42 60 . Level 1 8 | . . 17 2 39 . Level 2 21 | . . . 49 . . Level 3 2 | . . . 5 . . Level 4 . | . . . . . . Level 5 . | . . . . . . High Security . | . . . . . . Max Security . | . . . . . . Squads Dispatched 9 | . 2 . 6 1 . Investigation 4 | . 1 . 2 1 . Extermination . | . . . . . . Reinforcement 5 | . 1 . 4 . . Assault . | . . . . . . Garrison . | . . . . . . Intercept . | . . . . . . Construction Impeded 1 | . . . 1 . . Haulers Reinforced . | . . . . . . Stealth | -11 -10 -10 -9 -9 -9 --------- Run | Scr Mat Min Mat Min Exi Distress Signals 3 | . . . 3 . . Communications Jammed . | . . . . . . Distress Signals . | . . . . . . Times Spotted 139 | . 25 7 54 5 48 Peak Tracking Total 9 | . 5 5 6 2 9 Tactical Retreats 20 | . 1 1 3 1 14 Traps | -11 -10 -10 -9 -9 -9 ------- Run | Scr Mat Min Mat Min Exi Traps Triggered . | . . . . . . Indirectly . | . . . . . . Trap Hack Attempts . | . . . . . . Triggered . | . . . . . . Disarmed . | . . . . . . Reprogrammed . | . . . . . . Reused . | . . . . . . Traps Extracted . | . . . . . . Installed . | . . . . . . Triggered . | . . . . . . Machines | -11 -10 -10 -9 -9 -9 ---------- Run | Scr Mat Min Mat Min Exi Machines Disabled 23 | . 4 . 4 . 15 Max in Single Turn 3 | . 1 . 1 . 3 Machines Sabotaged . | . . . . . . Garrisons Compromised . | . . . . . . Overloaded Fab Kills . | . . . . . . Fab Network Shutdowns . | . . . . . . Hacking | -11 -10 -10 -9 -9 -9 --------- Run | Scr Mat Min Mat Min Exi Machines Accessed 26 | . 10 1 13 1 1 Terminals 17 | . 7 . 10 . . Fabricators . | . . . . . . Repair Stations 2 | . 1 . 1 . . Recycling Units 3 | . 2 . 1 . . Scanalyzers 1 | . . . 1 . . Garrison Access . | . . . . . . Total Hacks 62 | . 27 1 32 1 1 Successful 35 | . 16 1 16 1 1 Failed 27 | . 11 . 16 . . Catastrophic 5 | . 2 . 3 . . Database Lockouts . | . . . . . . Manual 35 | . 18 . 16 . 1 Terminals 46 | . 23 . 23 . . Fabricators . | . . . . . . Repair Stations 4 | . 2 . 2 . . Recycling Units 5 | . 2 . 3 . . Scanalyzers 4 | . . . 4 . . Garrison Access . | . . . . . . Terminal Hacks 20 | . 10 1 7 1 1 Robot Analysis 3 | . 3 . . . . Prototype ID Bank 7 | . 4 . 3 . . Open Door 2 | . . 1 . 1 . Branch Access Points 1 | . . . 1 . . Terminal Index 2 | . 1 . 1 . . Unreport Threat 1 | . . . 1 . . Locate Traps 2 | . 1 . 1 . . Zone Layout 1 | . 1 . . . . EX-Prototype ID Bank 1 | . . . . . 1 Fabricator Hacks . | . . . . . . Repair Station Hacks 4 | . 2 . 2 . . Scan Component 2 | . 1 . 1 . . Repair 2 | . 1 . 1 . . Recycling Unit Hacks 1 | . 1 . . . . Retrieve Matter 1 | . 1 . . . . Scanalyzer 4 | . . . 4 . . Insert Component 3 | . . . 3 . . Analyze 1 | . . . 1 . . Garrison Access Hacks . | . . . . . . Unauthorized Hacks 6 | . 3 . 3 . . Terminals 3 | . 2 . 1 . . Track 1 | . . . 1 . . Assimilate 1 | . 1 . . . . Operators 1 | . 1 . . . . Fabricators . | . . . . . . Repair Stations . | . . . . . . Recycling Units 3 | . 1 . 2 . . Monitor 1 | . . . 1 . . Tunnel 2 | . 1 . 1 . . Scanalyzers . | . . . . . . Garrison Access . | . . . . . . Data Cores Recovered 1 | . . . 1 . . Used . | . . . . . . Hacking Detections 21 | . 8 . 13 . . Full Trace Events 1 | . . . 1 . . Feedback Events . | . . . . . . Feedback Blocked . | . . . . . . Robot Schematics Acquired . | . . . . . . Robots Built . | . . . . . . Matter . | . . . . . . Time . | . . . . . . Total Robot Build Rating . | . . . . . . Part Schematics Acquired 1 | . . . 1 . . Parts Built . | . . . . . . Matter . | . . . . . . Time . | . . . . . . Total Part Build Rating . | . . . . . . Parts Repaired 2 | . 1 . 1 . . Time 70 | . 44 . 26 . . Parts Recycled . | . . . . . . Recycled Matter . | . . . . . . Retrieved Matter 430 | . 430 . . . . Retrieved Components . | . . . . . . Parts Scanalyzed 1 | . . . 1 . . Part Schematics Acquired 1 | . . . 1 . . Parts Damaged . | . . . . . . Bothacking | -11 -10 -10 -9 -9 -9 ------------ Run | Scr Mat Min Mat Min Exi Used RIF Installer . | . . . . . . Robots Hacked . | . . . . . . Non-combat . | . . . . . . Combat . | . . . . . . Robot Hacks Applied . | . . . . . . Relay Couplers Released . | . . . . . . Robots Rewired . | . . . . . . Allies Hacked . | . . . . . . Hacks Repelled . | . . . . . . Allies | -11 -10 -10 -9 -9 -9 -------- Run | Scr Mat Min Mat Min Exi Total Allies 6 | . 1 5 . . . Largest Group 5 | . 1 5 . . . Highest-Rated Group 80 | . 10 80 . . . Highest-Rated Ally 31 | . 10 31 . . . Total Orders . | . . . . . . Ally Attacks 47 | . . 47 . . . Total Damage 534 | . . 534 . . . Kills 11 | . . 11 . . . Allies Corrupted . | . . . . . . Allies Melted . | . . . . . . Intel | -11 -10 -10 -9 -9 -9 ------- Run | Scr Mat Min Mat Min Exi Robot Analysis Total 3 | . 3 . . . . Derelict Logs Recovered 1 | . . 1 . . . Drone Launches . | . . . . . . Drone Recoveries . | . . . . . . Exploration | -11 -10 -10 -9 -9 -9 ------------- Run | Scr Mat Min Mat Min Exi Turns Passed 11213 | 127 2367 1490 3761 1024 2444 Spaces Moved 4163 | 37 1137 753 1026 376 834 Core . | . . . . . . Treads 3721 | 25 707 753 1026 376 834 Legs . | . . . . . . Wheels 442 | 12 430 . . . . Hover . | . . . . . . Flight . | . . . . . . Fastest Speed 90 | 90 90 180 180 200 200 Average Speed 182 | 137 146 180 200 204 201 Slowest Speed 320 | 160 180 180 220 220 320 Overloaded Moves . | . . . . . . Propulsion Burnouts . | . . . . . . Robots Hopped . | . . . . . . Cave-ins Triggered . | . . . . . . Exploration Rate (%) 70 | 5 96 95 81 66 79 Regions Visited 5 Branch Regions 3 Pre-discovered Areas 3 | . 1 1 1 . . Known Exits Taken 1 | . . . 1 . . Unknown Exits Taken 4 | 1 1 1 . 1 . Scrap Searched 3 | . . 1 . 2 . Spaces Dug 17 | . 10 . 7 . . Terrain Destroyed 47 | . 14 . 7 . 26 Melee 7 | . . . 7 . . Projectile 14 | . 14 . . . . AOE 26 | . . . . . 26 Terrain Rammed . | . . . . . . Walls Destroyed . | . . . . . . Machines Disabled . | . . . . . . Actions | -11 -10 -10 -9 -9 -9 --------- Run | Scr Mat Min Mat Min Exi Total 7215 | 82 1725 864 2518 612 1414 Wait 2351 | 22 448 65 1219 222 375 Move 4158 | 36 1136 752 1025 375 834 Hop . | . . . . . . Pick Up 134 | 1 22 8 64 . 39 Fast Attach 19 | 1 6 1 6 . 5 Attach 32 | 1 3 1 12 . 15 Detach 3 | . 1 . . . 2 Swap 72 | 3 9 7 32 6 15 Drop 104 | 3 23 11 46 . 21 Fire 276 | 15 58 10 98 8 87 Melee 7 | . . . 7 . . Ram . | . . . . . . Kick . | . . . . . . Crush 53 | . 19 9 9 1 15 Escape Stasis . | . . . . . . Rewire 6 | . . . . . 6 Trap . | . . . . . . Miscellaneous . | . . . . . . Route ------- -11/Scrapyard -10/Materials (discovered 4 exits: *Mat x3 / *Min) -10/Mines (discovered 2 exits: *Mat x2) -9/Materials (discovered 4 exits: [*Mat x2] / *Min x2) -9/Mines (discovered 2 exits: [*Mat] / *Exi) -9/Exiles (discovered 1 exit: [*Min]) History --------- Turn | Location | Event 16 | -11/Scrapyard | Discovered new exit (range 2) 128 | -11/Scrapyard | Entered Materials 133 | -10/Materials | Discovered new exit (range 15) 311 | -10/Materials | Build established: Mutant 490 | -10/Materials | Discovered new exit (range 15) 926 | -10/Materials | Discovered new exit (range 9) 1355 | -10/Materials | Repaired Broken Imp. Light Cannon 2119 | -10/Materials | Discovered new exit (range 5) 2495 | -10/Materials | Entered Mines 2531 | -10/Mines | Assisted by bots powering up and referring to "LRC-V3" 2559 | -10/Mines | Learned Materials stockpile data 2581 | -10/Mines | Met a Derelict bent on vengeance 2937 | -10/Mines | Discovered new exit (range 10) 3133 | -10/Mines | Found the Drone Emporium 3146 | -10/Mines | Found Prototype Device 3325 | -10/Mines | Discovered new exit (range 5) 3837 | -10/Mines | Found a damaged Exp. Sensor Array with a note attached 3841 | -10/Mines | Found Prototype Device 3862 | -10/Mines | Identified Exp. Sensor Array 3985 | -10/Mines | Entered Materials 3985 | -9/Materials | Accompanied by 1 ally 3985 | -9/Materials | Evolved 2 slots: Utility x2 4388 | -9/Materials | Build established: Hauler-Mutant 5381 | -9/Materials | Discovered new exit (range 11) 5604 | -9/Materials | Discovered new exit (range 7) 5966 | -9/Materials | Repaired Lgt. Treads 6392 | -9/Materials | Identified exit to Mines 6772 | -9/Materials | Discovered new exit (range 15) 7247 | -9/Materials | Discovered new exit (range 13) 7318 | -9/Materials | Identified Bomb Drone Bay 7746 | -9/Materials | Entered Mines 7899 | -9/Mines | Met a Derelict shopkeep closing up shop 8524 | -9/Mines | Discovered new exit (range 8) 8730 | -9/Mines | Deemed a non-threat by the Exiles lab entrance 8730 | -9/Mines | Discovered new exit (range 5) 8770 | -9/Mines | Entered Exiles 8820 | -9/Exiles | Met 8R-AWN 8852 | -9/Exiles | Met EX-HEX 8910 | -9/Exiles | Met EX-BIN 8958 | -9/Exiles | Aligned with FarCom system 8960 | -9/Exiles | Given EX-Vault access code 9010 | -9/Exiles | Opened EX-Vault 9056 | -9/Exiles | Warned to stay clear of 0b10 Research branches 9108 | -9/Exiles | Met EX-DEC 9839 | -9/Exiles | Discovered new exit (range 14) 9977 | -9/Exiles | Attacked by the Exiles 10089 | -9/Exiles | Core integrity fell below 50% 10149 | -9/Exiles | Destroyed 8R-AWN 10161 | -9/Exiles | Lost 3 parts (2n1w) 10250 | -9/Exiles | Core integrity fell below 20% 10285 | -9/Exiles | Lost 8 parts (1p3n1u3w) 10784 | -9/Exiles | Destroyed EX-HEX 11126 | -9/Exiles | Destroyed EX-BIN 11214 | -9/Exiles | Destroyed by EX-DEC with AWS/EX-DEC Last Messages --------------- 10846_ Chain reaction triggered in Mak. Power Source. 10852_ System corrupted: Shock Bomb Launcher targeting data glitched. 10855_ Dropped Hcp. Matter Pod. 10856_ Extracted 150 matter. 10856_ Acquired Hcp. Matter Pod. 10857_ Destroyed EX Chip 2. 10861_ System corrupted: Component data lost. 10881_ System corrupted: Heat flow error (+145). 10939_ UCIU71LYV8#QT L2UPIJHKHA4%BH 10961_ R|8M0VGVHUNM|2,D 11126_ EX-BIN: "You can't kill me, my evil twin will get revenge!" 11126_ EX-BIN destroyed. 11126_ Chain reaction triggered in Prototype Reactor. 11144_ System corrupted: Energy discharge (-57). 11206_ Machine disabled. Map ----- +----------------------------------------------------+ | # ########?### ###?######"" #?????????? | | ## #"###X# #"###""""""" ##????????? | | ?# """"" " "" ##???##### | | ?# # "" """ " #####"""" | | ?#### " " " "" | | ????### "" | | ??????### " | | ????????## | | ?????????## | | ??????????# | | ??????????# """""" | | ?????????## ######""" | | ?????????# ""##????#####""" | | ?????????## """##?????????##""" | | ?????????# """##???????????#"""" | | ?????????# ""#????????????#"" | | ?????????#"" ########???###"""" | | ?????????#"" ## !####""" | | ?????????#"" ! !"""" | | ?????????##" | | ??????????#"" ! | | ??????????## " | | ???????????#" " "" " | | ???????????#"""" ""## ##""" " " "" | | ???????????#"" ""#### #??###""" """ | | ???????????#" @ """##??# #??????#""??? | | ???????????#""" c """#??## ####????????? | | ???????????## ""##??# "!#????????? | | ????????????#"" ""##???#" !#????????? | | ????????????##"" ##????#" "#????????? | | ?????????????##"""" ##?????#!!"" "#????????? | | ??????????????### #??????########????????? | | ????????????????##### ;#??????????????????????? | | ????????????????????## ##??????????????????????? | | ?????????????????????# #???????????????????????? | | ?????????????????????# #???????????????????????? | | ?????????????????????# #???????????????????????? | | ?????????????????????# #???????????????????????? | | ??????????#""????????# ##??????????????????????? | | ??????????#"""??????## #??????????????????????? | | ??????????#" "????## #??????????????????????? | | ??????????# ??## #??????????????????????? | | ??????????# "?# #??????????????????????? | | ????????### ## #######????????????????? | | ??????? = """""#????????????????? | | ??????? "#"" ""???????????? | | ????? " ""???????????? | | ?????? = " " "???????????? | | ?????? [ " """???????????? | | ?????? % #"" ""???????????? | +----------------------------------------------------+ Best States ------------- Heat Dissipation 50 Energy Generation 19 Energy Capacity 665 Matter Stores 300 Matter Capacity 300 Sight Range 16 Terrain Scan Range 16 Terrain Scan Density 10 Armor Coverage 450 Evasion (%) 42 Recoil Reduction 2 Offensive Hacking 20 Item Schematics ----------------- Exp. Sensor Array | -9/Materials | Scanalyzed Robot Schematics ------------------ None Fabricated ------------ Nothing Alien Tech Used ----------------- None Achievements -------------- None Challenges ------------ None Game ------ Seed FissionMiniMace Manual? 0 Play Time 01:07:37 Cumulative 329.1 hours Start 2022.02.03 @ 06:44:33 End 2022.02.03 @ 07:53:23 Sessions 1 Manual Loads 0 Difficulty Rogue Special Mode None Game No. 257 Rogue 257 Adventurer 0 Explorer 0 Win Type - Total 6 Types 5/0/1/0/0/0/0/0/0 Lore% 55 Gallery% 78 Achievement% 62 Wizard Run 0 Options --------- ASCII 0 Keyboard 0 Movement Numpad Keybinds 0 Fullscreen 2 Font 18/TerminusBold Map View 76x50 Tactical HUD 1 Map Filters NONE Filters NONE Steam 1 RUN: 587728d2-78d8-4d6f-a37e-f97d2a1e835f